Cogmind - Beta 11.1 @@@ ROGUE MODE // 2022.05.31 @ 17:44:06 Player: eldritch Result: Self-destructed Performance ------------- Evolutions (1) 500 Regions Visited (5) 1000 Robots Destroyed (24) 120 Value Destroyed (403) 403 Prototype IDs (1) 20 Alien Tech Used (0) 0 Bonus (2) 2 TOTAL SCORE: 2045 Bonus ------- High Alert Combat Kills 2 Cogmind --------- Core Integrity 346/400 Matter 290/300 Energy 265/265 System Corruption 5% Temperature Cool (0) Movement Walking (190) Ox1 Location -9/Exiles Parts ------- > --- POWER (1) -------- Improved Ion Engine > --- PROPULSION (3) --- Improved Treads Aluminum Leg Aluminum Leg > --- UTILITY (3) ------ Large Storage Unit Visual Processing Unit Seismic Detector > --- WEAPON (2) ------- Improved Assault Rifle Grenade Launcher > --- INVENTORY (15) --- Ion Engine Ion Engine Improved Treads Improved Treads Improved Treads Aluminum Leg Large Matter Pod (150) Sensor Array Experimental Sensor Array Signal Interpreter Light Armor Plating Advanced Beam Cannon Assault Rifle Improved Assault Rifle Rocket Launcher Peak State ------------ > --- POWER ------------ Improved Ion Engine > --- PROPULSION ------- Improved Treads Aluminum Leg Aluminum Leg > --- UTILITY ---------- Large Storage Unit Visual Processing Unit Light Armor Plating > --- WEAPON ----------- Improved Assault Rifle Improved Assault Rifle > --- INVENTORY -------- Ion Engine Ion Engine Improved Treads Improved Treads Improved Treads Aluminum Leg Aluminum Leg Large Matter Pod Sensor Array Experimental Sensor Array Signal Interpreter Seismic Detector Assault Rifle Assault Rifle Grenade Launcher [Rating: 18] Favorites ----------- Power Improved Ion Engine Engine Improved Ion Engine Propulsion Aluminum Leg Treads Improved Treads Leg Aluminum Leg Utility Large Storage Unit Device Seismic Detector Storage Large Storage Unit Processor Visual Processing Unit Protection Light Armor Plating Weapon Assault Rifle Ballistic Gun Assault Rifle Launcher Grenade Launcher Build | -11 -10 -10 -9 -9 -9 ------- Run | Scr Mat Min Mat Min Exi Slots Evolved 2 | . . . 2 . . Power . | . . . . . . Propulsion 1 | . . . 1 . . Utility 1 | . . . 1 . . Weapon . | . . . . . . Parts Attached 19 | 1 2 1 15 . . Power 1 | . . . 1 . . Engine 1 | . . . 1 . . Core . | . . . . . . Reactor . | . . . . . . Propulsion 6 | . . . 6 . . Treads 3 | . . . 3 . . Leg 3 | . . . 3 . . Wheel . | . . . . . . Hover . | . . . . . . Flight . | . . . . . . Utility 6 | 1 1 1 3 . . Device 2 | 1 . . 1 . . Storage 2 | . 1 1 . . . Processor 1 | . . . 1 . . Hackware . | . . . . . . Protection 1 | . . . 1 . . Artifact . | . . . . . . Weapon 6 | . 1 . 5 . . Energy Gun . | . . . . . . Energy Cannon . | . . . . . . Ballistic Gun 4 | . . . 4 . . Ballistic Cannon . | . . . . . . Launcher 2 | . 1 . 1 . . Special Weapon . | . . . . . . Impact Weapon . | . . . . . . Slashing Weapon . | . . . . . . Piercing Weapon . | . . . . . . Special Melee Weapon . | . . . . . . Unidentified Prototypes 1 | . . . 1 . . Parts Lost . | . . . . . . Power . | . . . . . . Propulsion . | . . . . . . Utility . | . . . . . . Weapon . | . . . . . . Highest Loss Streak . | . . . . . . To Critical Strikes . | . . . . . . Average Slot Usage (%) 98 | . 100 100 98 100 100 Engine 11 | . 14 14 11 11 11 Treads 7 | . . . 9 11 11 Leg 23 | . 28 28 22 22 22 Device 7 | . 14 14 4 11 11 Storage 11 | . 14 14 11 11 11 Processor 8 | . . . 11 11 11 Protection 4 | . . . 6 . . Ballistic Gun 20 | . 27 14 20 11 11 Launcher 3 | . . 14 1 11 11 Naked Turns . | . . . . . . Heaviest Build 36 | 15 21 31 36 34 34 Greatest Support 23 | 20 20 20 23 20 20 Greatest Overweight (x) 1 | . 1 1 1 1 1 Average Overweight (x) . | . . 1 1 1 1 Largest Inventory Capacity 15 | 8 10 15 15 15 15 Average Capacity 13 | 8 9 13 15 15 15 Most Carried 15 | 6 10 11 15 15 15 Average Carried 12 | 6 8 10 13 14 15 Final Capacity 15 | 8 10 15 15 15 15 Final Carried 15 | 6 10 11 15 15 15 Class Distribution -------------------- 61% | Scavenger-Mutant 38% | Mutant Dominant Class ---------------- Mutant | -10/Materials Mutant | -10/Mines Scavenger-Mutant | -9/Materials Scavenger-Mutant | -9/Mines Scavenger-Mutant | -9/Exiles Resources | -11 -10 -10 -9 -9 -9 ----------- Run | Scr Mat Min Mat Min Exi Matter Collected 957 | 324 29 . 545 . 59 Remotely . | . . . . . . Salvage Created 890 | 175 29 . 646 . 40 Parts 55 | 4 5 . 41 . 5 Haulers Intercepted 3 | . . . 3 . . Recyclers Shooed . | . . . . . . Parts Field Recycled . | . . . . . . Retrieved Matter . | . . . . . . Parts Self-Destructed . | . . . . . . Prevented . | . . . . . . Kills | -11 -10 -10 -9 -9 -9 ------- Run | Scr Mat Min Mat Min Exi Combat Hostiles Destroyed 15 | . . . 15 . . Guns 12 | . . . 12 . . AOE 3 | . . . 3 . . Classes Destroyed 8 | 3 1 . 4 . . Worker 2 | 2 . . . . . Tunneler 1 | 1 . . . . . Hauler 3 | . . . 3 . . Recycler 2 | 1 . . 1 . . Watcher 1 | . 1 . . . . Swarmer 8 | . . . 8 . . Grunt 5 | . . . 5 . . Sentry 2 | . . . 2 . . Best Kill Streak 4 | 2 1 . 4 . . Combat Bots Only 4 | . . . 4 . . Max Kills in Single Turn 2 | 1 1 . 2 . . Gunslinging . | . . . . . . Exploded 2 | . . . 2 . . Melee . | . . . . . . Uniques/NPCs Destroyed . | . . . . . . Combat | -11 -10 -10 -9 -9 -9 -------- Run | Scr Mat Min Mat Min Exi Damage Taken 385 | . . . 385 . . Core 54 | . . . 54 . . Absorbed by Shields . | . . . . . . Core Remaining (%) 100 | 100 . 100 . . . Volleys Fired 67 | 19 1 . 47 . . Largest 2 | 2 2 . 2 . . Hottest 50 | 40 40 . 50 . . Shots Fired 135 | 38 2 . 94 . 1 Gun 131 | 38 2 . 91 . . Cannon . | . . . . . . Launcher 4 | . . . 3 . 1 Special . | . . . . . . Kinetic 131 | 38 2 . 91 . . Thermal . | . . . . . . Explosive 4 | . . . 3 . 1 Electromagnetic . | . . . . . . Robot Hit Streak 16 | 4 4 . 16 . . Robot Miss Streak 2 | 2 . . 2 . 1 Penetration Max . | . . . . . . Secondary Targets . | . . . . . . Shots Hit Robots 93 | 24 1 . 68 . . Core Hits 33 | 5 1 . 26 . 1 Critical Kills 1 | . . . 1 . . Critical Parts Destroyed . | . . . . . . Critical Strikes 1 | . . . 1 . . Destroy 1 | . . . 1 . . Melee Attacks . | . . . . . . Impact . | . . . . . . Slashing . | . . . . . . Piercing . | . . . . . . Sneak Attacks . | . . . . . . Combat Hostiles . | . . . . . . Follow-up Attacks . | . . . . . . Damage Inflicted 1632 | 344 12 . 1232 . 44 Guns 1281 | 344 12 . 925 . . Cannons . | . . . . . . Explosions 348 | . . . 304 . 44 Melee . | . . . . . . Ramming 3 | . . . 3 . . Kinetic 1281 | 344 12 . 925 . . Thermal . | . . . . . . Explosive 348 | . . . 304 . 44 Electromagnetic . | . . . . . . Impact . | . . . . . . Slashing . | . . . . . . Piercing . | . . . . . . Highest Corruption 5 | . . . 5 5 5 Average Corruption 5 | . . . 5 5 5 Corruption Purged . | . . . . . . Corruption Blocked . | . . . . . . Effects 10 | . . . 6 1 3 Message Errors 3 | . . . 2 . 1 Matter Fused 2 | . . . 1 . 1 Energy Discharges 2 | . . . 2 . . Data Loss (major) 2 | . . . 1 1 . Misfires 1 | . . . . . 1 Overload Shots . | . . . . . . Overflow Damage 51 | . . . 51 . . Projectiles . | . . . . . . Explosions 51 | . . . 51 . . Melee . | . . . . . . Knockbacks . | . . . . . . Impact . | . . . . . . Kinetic . | . . . . . . Secondary . | . . . . . . Self-Inflicted Damage . | . . . . . . Shots . | . . . . . . Rammed . | . . . . . . Targets Rammed 4 | . . . 4 . . Kicked 4 | . . . 4 . . Crushed . | . . . . . . Highest Temperature 17 | . . . 17 . . Average Temperature 8 | . . . 8 . . Received Heat Transfer 141 | . . . 141 . . Siege Activations . | . . . . . . Robots Corrupted . | . . . . . . Combat Hostiles . | . . . . . . Parts Fried . | . . . . . . Impact Corruptions . | . . . . . . Robots Melted . | . . . . . . Combat Hostiles . | . . . . . . Parts Melted . | . . . . . . Heat Transferred . | . . . . . . Parts Sabotaged . | . . . . . . Parts Stolen . | . . . . . . Parts Stripped . | . . . . . . Power Chain Reactions . | . . . . . . Missiles Intercepted . | . . . . . . Alert | -11 -10 -10 -9 -9 -9 ------- Run | Scr Mat Min Mat Min Exi Peak Influence 412 | 20 20 7 412 106 . Initial 106 | . 13 7 2 106 . Average 183 | 8 16 7 278 106 . Maximum Alert Level 2 | . . . 2 . . Low Security (%) 39 | 100 100 100 4 100 . Level 1 58 | . . . 91 . . Level 2 2 | . . . 3 . . Level 3 . | . . . . . . Level 4 . | . . . . . . Level 5 . | . . . . . . High Security . | . . . . . . Max Security . | . . . . . . Squads Dispatched 3 | . 1 . 2 . . Investigation 1 | . . . 1 . . Extermination . | . . . . . . Reinforcement 2 | . 1 . 1 . . Assault . | . . . . . . Garrison . | . . . . . . Intercept . | . . . . . . Searches Triggered . | . . . . . . Construction Impeded . | . . . . . . Haulers Reinforced . | . . . . . . Active Scanning Responses . | . . . . . . Cargo Convoy Interrupts . | . . . . . . Stealth | -11 -10 -10 -9 -9 -9 --------- Run | Scr Mat Min Mat Min Exi Distress Signals 3 | . . . 3 . . Communications Jammed . | . . . . . . Distress Signals . | . . . . . . Times Spotted 32 | . 2 . 30 . . Peak Tracking Total 9 | . 1 . 7 . 9 Tactical Retreats 1 | . . . 1 . . Traps | -11 -10 -10 -9 -9 -9 ------- Run | Scr Mat Min Mat Min Exi Traps Triggered 1 | . . . 1 . . Indirectly . | . . . . . . Trap Hack Attempts . | . . . . . . Triggered . | . . . . . . Disarmed . | . . . . . . Reprogrammed . | . . . . . . Reused . | . . . . . . Traps Extracted . | . . . . . . Installed . | . . . . . . Triggered . | . . . . . . Machines | -11 -10 -10 -9 -9 -9 ---------- Run | Scr Mat Min Mat Min Exi Machines Disabled 2 | . . . 2 . . Max in Single Turn 2 | . . . 2 . . Machines Sabotaged . | . . . . . . Garrisons Compromised . | . . . . . . Overloaded Fab Kills . | . . . . . . Hacking | -11 -10 -10 -9 -9 -9 --------- Run | Scr Mat Min Mat Min Exi Machines Accessed 6 | . 2 . 4 . . Terminals 3 | . . . 3 . . Fabricators . | . . . . . . Repair Stations 1 | . . . 1 . . Recycling Units 2 | . 2 . . . . Scanalyzers . | . . . . . . Garrison Access . | . . . . . . Total Hacks 20 | . 6 . 14 . . Successful 8 | . 3 . 5 . . Failed 11 | . 3 . 8 . . Catastrophic 4 | . 1 . 3 . . Database Lockouts 1 | . . . 1 . . Manual 12 | . . . 12 . . Terminals 13 | . . . 13 . . Fabricators . | . . . . . . Repair Stations 1 | . . . 1 . . Recycling Units 6 | . 6 . . . . Scanalyzers . | . . . . . . Garrison Access . | . . . . . . Terminal Hacks 4 | . . . 4 . . Robot Analysis 2 | . . . 2 . . Alert Level 1 | . . . 1 . . Hauler Manifests 1 | . . . 1 . . Fabricator Hacks . | . . . . . . Repair Station Hacks . | . . . . . . Recycling Unit Hacks 3 | . 3 . . . . Report Inventory 2 | . 2 . . . . Retrieve Components 1 | . 1 . . . . Scanalyzer . | . . . . . . Garrison Access Hacks . | . . . . . . Unauthorized Hacks 1 | . . . 1 . . Terminals 1 | . . . 1 . . Track 1 | . . . 1 . . Fabricators . | . . . . . . Repair Stations . | . . . . . . Recycling Units . | . . . . . . Scanalyzers . | . . . . . . Garrison Access . | . . . . . . Data Cores Recovered . | . . . . . . Used . | . . . . . . Hacking Detections 5 | . 1 . 4 . . Full Trace Events 1 | . 1 . . . . Feedback Events . | . . . . . . Feedback Blocked . | . . . . . . Robot Schematics Acquired . | . . . . . . Robots Built . | . . . . . . Authchips . | . . . . . . Time . | . . . . . . Total Robot Build Rating . | . . . . . . Part Schematics Acquired . | . . . . . . Parts Built . | . . . . . . Authchips . | . . . . . . Time . | . . . . . . Total Part Build Rating . | . . . . . . Parts Repaired . | . . . . . . Time . | . . . . . . Parts Recycled . | . . . . . . Recycled Matter . | . . . . . . Retrieved Matter . | . . . . . . Retrieved Components 3 | . 3 . . . . Parts Scanalyzed . | . . . . . . Part Schematics Acquired . | . . . . . . Parts Damaged . | . . . . . . Bothacking | -11 -10 -10 -9 -9 -9 ------------ Run | Scr Mat Min Mat Min Exi Used RIF Installer . | . . . . . . Robots Hacked . | . . . . . . Non-combat . | . . . . . . Combat . | . . . . . . Robot Hacks Applied . | . . . . . . Relay Couplers Released . | . . . . . . Fabnet Peak Effective % . | . . . . . . Robots Rewired . | . . . . . . Allies Hacked . | . . . . . . Hacks Repelled . | . . . . . . Allies | -11 -10 -10 -9 -9 -9 -------- Run | Scr Mat Min Mat Min Exi Total Allies . | . . . . . . Largest Group . | . . . . . . Highest-Rated Group . | . . . . . . Highest-Rated Ally . | . . . . . . Total Orders . | . . . . . . Ally Attacks . | . . . . . . Total Damage . | . . . . . . Kills . | . . . . . . Allies Corrupted . | . . . . . . Allies Melted . | . . . . . . Intel | -11 -10 -10 -9 -9 -9 ------- Run | Scr Mat Min Mat Min Exi Robot Analysis Total 2 | . . . 2 . . Derelict Logs Recovered . | . . . . . . Drone Launches . | . . . . . . Drone Recoveries . | . . . . . . Exploration | -11 -10 -10 -9 -9 -9 ------------- Run | Scr Mat Min Mat Min Exi Turns Passed 1589 | 135 255 95 908 36 160 Spaces Moved 679 | 43 198 48 290 16 84 Core . | . . . . . . Treads 48 | . . . 48 . . Legs 631 | 43 198 48 242 16 84 Wheels . | . . . . . . Hover . | . . . . . . Flight . | . . . . . . Fastest Speed 120 | 120 120 190 190 190 190 Average Speed 168 | 120 120 190 198 190 190 Slowest Speed 240 | 120 190 190 240 190 190 Overloaded Moves . | . . . . . . Propulsion Burnouts . | . . . . . . Robots Hopped . | . . . . . . Cave-ins Triggered . | . . . . . . Exploration Rate (%) 18 | 4 24 16 29 5 32 Regions Visited 5 Branch Regions 3 Pre-discovered Areas . | . . . . . . Known Exits Taken . | . . . . . . Unknown Exits Taken 5 | 1 1 1 1 1 . Scrap Searched . | . . . . . . Spaces Dug 6 | . . . 6 . . Terrain Destroyed 27 | . . . 24 . 3 Melee . | . . . . . . Projectile . | . . . . . . AOE 27 | . . . 24 . 3 Terrain Rammed . | . . . . . . Walls Destroyed . | . . . . . . Machines Disabled . | . . . . . . Actions | -11 -10 -10 -9 -9 -9 --------- Run | Scr Mat Min Mat Min Exi Total 990 | 88 213 52 530 23 84 Wait 194 | 26 2 3 157 6 . Move 674 | 42 197 47 289 15 84 Hop . | . . . . . . Pick Up 16 | . 7 1 7 1 . Fast Attach 4 | 1 . . 3 . . Attach 1 | . . . 1 . . Detach . | . . . . . . Swap 14 | . 2 1 11 . . Drop 16 | . 4 . 11 1 . Fire 67 | 19 1 . 47 . . Melee . | . . . . . . Ram . | . . . . . . Kick 4 | . . . 4 . . Crush . | . . . . . . Escape Stasis . | . . . . . . Rewire . | . . . . . . Trap . | . . . . . . Miscellaneous . | . . . . . . Route ------- -11/Scrapyard -10/Materials -10/Mines -9/Materials -9/Mines -9/Exiles (discovered 1 exit: [*Min]) History --------- Turn | Location | Event 1 | -11/Scrapyard | Discovered new exit (range 3) 136 | -11/Scrapyard | Entered Materials 310 | -10/Materials | Build established: Mutant 370 | -10/Materials | Discovered new exit (range 14) 391 | -10/Materials | Entered Mines 426 | -10/Mines | Found a damaged Exp. Sensor Array with a note attached 431 | -10/Mines | Found Prototype Device 458 | -10/Mines | Discovered new exit (range 16) 486 | -10/Mines | Entered Materials 486 | -9/Materials | Evolved 2 slots: Propulsion x1, Utility x1 902 | -9/Materials | Central database locked down 922 | -9/Materials | Build established: Scavenger-Mutant 1376 | -9/Materials | Discovered new exit (range 10) 1394 | -9/Materials | Entered Mines 1401 | -9/Mines | Received a Rocket Launcher from a helpful Derelict 1423 | -9/Mines | Deemed a non-threat by the Exiles lab entrance 1423 | -9/Mines | Discovered new exit (range 5) 1430 | -9/Mines | Entered Exiles 1455 | -9/Exiles | Discovered new exit (range 17) 1474 | -9/Exiles | Met 8R-AWN 1506 | -9/Exiles | Met EX-HEX 1589 | -9/Exiles | Attacked by the Exiles 1590 | -9/Exiles | Self-destructed Last Messages --------------- learn more about the Assembled. They're clearly not of 0b10 construction, and their tech is weird, seemingly copying a wide array of components of other bots with little pattern or logic. It's almost like the early stages of some sort of... evolution. I'd love to just go ask the Imprinter what all this is about, she must know something, but I doubt that would end well. The Zionites will tell you those Marauders at the gates are defenses set up by Warlord... Nope, the Imprinter put them there mostly to keep us out! Anyway, I've got to get back to poking and prodding these nasty little guys. Go see BIN. I can't imagine you'll want to stay in our boring little cave for long, and we could use some help with the project in the back. 01571_ Extracted 59 matter. 01589_ System corrupted: FCS attempts to trigger Grenade Launcher. 01589_ System corrupted: Grenade Launcher misfires. 01589_ EXILES: Hostile robot within lab perimeter. Defensive protocols time, folks! 01589_ A-02 Transporter destroyed. Map ----- +----------------------------------------------------+ | ?????????????????????????????????????????????????? | | ?????????????????????????????????????????????????? | | ?????????????????????????????????????????????????? | | ?????????????????????????????????????????????????? | | ?????????????????????????????????????????????????? | | ????????????????????????????? #????##########????? | | ???????????????????????????? #####"""""""""##??? | | ??????????????????????????? " """ """"##?? | | ?????????????????????????? "" " #?? | | ?????????????????????????? " """#?? | | ?????????????????????????? " "#?? | | ?????????????????????????? " "##? | | ?????????????????????????? ""## | | ??????????????????????????" """ | | ????????????????????????????" " | | ?????????????????????????????#""" | | ???????? ??????????????????#""" | | ???????? ????????????????#"""" | | ???????? "?????????????##"" | | ??????? z ######???####"""" | | ??????? *%aa####""" | | ?????? !!= """" | | ?????? | | ?????? | | ?????? " | | ?????? " @ "" """ " | | ??????? ""## ##""" " " ""#" " | | ??????? ""##?# ######""" """##"""""""# | | ???????? """"#???# #????###""""########### | | ???????? """???## ####???######?????????? | | ???????? "?????#! "!#??????????????????? | | ????????? ????????#" !#??????????????????? | | ????????? ?? ?????????#" "#??????????????????? | | ???????????? ??????????#!!""!"#??????????????????? | | ???????????????????????########??????????????????? | | ?????????????????????????????????????????????????? | | ?????????????????????????????????????????????????? | | ?????????????????????????????????????????????????? | | ?????????????????????????????????????????????????? | | ?????????????????????????????????????????????????? | | ?????????????????????????????????????????????????? | | ?????????????????????????????????????????????????? | | ?????????????????????????????????????????????????? | | ?????????????????????????????????????????????????? | | ?????????????????????????????????????????????????? | | ?????????????????????????????????????????????????? | | ?????????????????????????????????????????????????? | | ?????????????????????????????????????????????????? | | ?????????????????????????????????????????????????? | | ?????????????????????????????????????????????????? | +----------------------------------------------------+ Best States ------------- Heat Dissipation 28 Energy Generation 12 Energy Capacity 265 Matter Stores 300 Matter Capacity 300 Sight Range 18 Terrain Scan Density 10 Armor Coverage 150 Evasion (%) 55 Recoil Reduction 1 Item Schematics ----------------- None Robot Schematics ------------------ None Fabricated ------------ Nothing Alien Tech Used ----------------- None Achievements -------------- None Challenges ------------ None Game ------ Seed ShrapnelTrackerLog Manual? 0 Play Time 00:13:24 Cumulative 245.8 hours Start 2022.05.31 @ 17:31:10 End 2022.05.31 @ 17:44:06 Sessions 1 Manual Loads 0 Difficulty Rogue Special Mode None Game No. 557 Rogue 557 Adventurer 0 Explorer 0 Win Type - Total 5 Types 4/0/0/1/0/0/0/0/0 Lore% 58 Gallery% 61 Achievement% 56 Wizard Run 0 Options --------- ASCII 0 Keyboard 0 Movement Numpad Keybinds 0 Fullscreen 1 Font 16/SmallcapsGlow Map View 75x55 Tactical HUD 1 Map Filters NONE Filters NONE Steam 1 RUN: 50d1224b-6a93-4786-8cde-ca53af1fa246